fUSD/lending_fUSD_20251206
["ID","MTS","AMOUNT","RATE_DAILY","PERIOD"]
[396502056,1765011459877,153.0,0.00039452,120]
[396502057,1765011460092,153.0,0.00039452,120]
[396502058,1765011460220,150.0,0.00052054,30]
[396502059,1765011460304,153.0,0.00039452,120]
[396502060,1765011460742,661.62,0.00051804,120]
[396502061,1765011461232,309.77750922,0.00051804,120]
[396502062,1765011461718,417.0,0.00052054,30]
[396502063,1765011462392,150.0,0.00052054,30]
[396502064,1765011462703,3175.81,0.00041,30]
[396502065,1765011463016,3175.81,0.00048,30]
[396502066,1765011465459,680.88,0.00051804,120]
[396502067,1765011465732,417.0,0.00052054,30]
[396502068,1765011466006,417.0,0.00052054,30]
[396502069,1765011466292,429.56282638,0.00052054,30]
[396502070,1765011467399,150.0,0.00052054,30]
[396502071,1765011467667,150.0,0.00052054,30]
[396502072,1765011467931,150.0,0.00052054,30]
[396502073,1765011468244,150.0,0.00052054,30]
[396502074,1765011468522,156.59661348,0.00052054,30]
[396502075,1765011469774,500.0,0.00052054,30]
[396502076,1765011470100,500.0,0.00052054,30]
[396502077,1765011470217,500.0,0.00052054,30]
[396502078,1765011470335,563.06288704,0.00051804,120]
[396502079,1765011470385,500.0,0.00052054,30]
[396502080,1765011470720,500.0,0.00052054,30]
[396502081,1765011470755,500.0,0.00052054,30]
[396502082,1765011470786,500.0,0.00052054,30]
[396502083,1765011471196,500.0,0.00052054,30]
[396502084,1765011471815,500.0,0.00052054,30]
[396502085,1765011472349,500.0,0.00052054,30]
[396502086,1765011472451,153.0,0.00039452,120]
[396502087,1765011472687,153.0,0.00039452,120]
[396502088,1765011472950,153.0,0.00039452,120]
[396502089,1765011473229,153.0,0.00039452,120]
[396502090,1765011473458,153.0,0.00039452,120]
[396502091,1765011473583,500.0,0.00052054,30]
[396502092,1765011474417,1000.0,0.0004278,30]
[396502093,1765011474451,500.0,0.00052054,30]
[396502094,1765011474702,1000.0,0.00043054,30]
[396502096,1765011475297,1000.0,0.00043328,30]
[396502097,1765011475745,1000.0,0.00043602,30]
[396502098,1765011475889,1000.0,0.00043876,30]
[396502099,1765011476149,1000.0,0.0004415,30]
[396502100,1765011476243,500.0,0.00052054,30]
[396502101,1765011476439,1000.0,0.00044424,30]
[396502102,1765011476705,1000.0,0.00044698,30]
[396502103,1765011477012,1000.0,0.00044972,30]
[396502104,1765011477546,1000.0,0.00045246,30]
[396502105,1765011477724,500.0,0.00052054,30]
[396502106,1765011477813,1000.0,0.0004552,30]
[396502107,1765011478074,1000.0,0.00045794,30]
[396502108,1765011478602,1000.0,0.00046068,30]
[396502109,1765011478874,1000.0,0.00046342,30]
[396502110,1765011479209,1000.0,0.00046616,30]
[396502111,1765011479477,1000.0,0.0004689,30]
[396502112,1765011479737,1000.0,0.00047164,30]
[396502113,1765011479993,1000.0,0.00047438,30]
[396502114,1765011480114,500.0,0.00052054,30]
[396502115,1765011480289,1000.0,0.00047712,30]
[396502116,1765011480551,1000.0,0.00047985,30]
[396502117,1765011481263,300.0,0.00015334,2]
[396502118,1765011481304,218.064,0.00047985,30]
[396502119,1765011485672,151.0,0.00052055,30]
[396502120,1765011486241,1000.0,0.00048259,30]
[396502121,1765011486290,151.0,0.00052055,30]
[396502122,1765011486340,1000.0,0.00048533,30]
[396502124,1765011486730,1000.0,0.00048807,30]
[396502125,1765011486859,151.0,0.00052055,30]
[396502126,1765011487008,1999.0,0.00049081,30]
[396502127,1765011487452,151.0,0.00052055,30]
[396502128,1765011487489,235.463,0.00015235,2]
[396502129,1765011488070,151.0,0.00052055,30]
[396502130,1765011488656,151.0,0.00052055,30]
[396502131,1765011489415,151.0,0.00052055,30]
[396502132,1765011489889,151.0,0.00052055,30]
[396502133,1765011490470,151.0,0.00052055,30]
[396502134,1765011491038,175.35623716,0.00051804,120]
[396502135,1765011491083,151.0,0.00052055,30]
[396502136,1765011491651,254.38955024,0.00052054,30]
[396502137,1765011491734,151.0,0.00052055,30]
[396502138,1765011492343,239.7235462,0.00052055,30]
[396502139,1765011492401,500.0,0.00052054,30]
[396502140,1765011492526,500.0,0.00052055,30]
[396502141,1765011492660,500.0,0.00052054,30]
[396502142,1765011493002,500.0,0.00052054,30]
[396502143,1765011493167,500.0,0.00052055,30]
[396502144,1765011493270,500.0,0.00052054,30]
[396502145,1765011493544,500.0,0.00052054,30]
[396502146,1765011493793,500.0,0.00052055,30]
[396502147,1765011493869,500.0,0.00052054,30]
[396502148,1765011494134,500.0,0.00052054,30]
[396502149,1765011494404,500.0,0.00052054,30]
[396502150,1765011494434,500.0,0.00052055,30]
[396502151,1765011494668,6182.92706772,0.00015235,2]
[396502152,1765011494694,8608.35974955,0.00015235,2]
[396502153,1765011494732,500.0,0.00052054,30]
[396502154,1765011494940,500.0,0.00052054,30]
[396502155,1765011495033,500.0,0.00052055,30]
[396502156,1765011495681,500.0,0.00052054,30]
[396502157,1765011496028,500.0,0.00052055,30]
[396502158,1765011496571,500.0,0.00052054,30]
[396502159,1765011496620,293.25863683,0.00051804,120]
[396502160,1765011496670,500.0,0.00052055,30]
[396502161,1765011497332,500.0,0.00052055,30]
[396502162,1765011497744,500.0,0.00052054,30]
[396502163,1765011497924,500.0,0.00052055,30]
[396502164,1765011499913,150.0,0.00052054,30]
[396502165,1765011500207,150.0,0.00052054,30]
[396502166,1765011500493,204.42751338,0.00052054,30]
[396502167,1765011502197,1000.0,0.00052054,30]
[396502168,1765011502504,1000.0,0.00052054,30]
[396502169,1765011502755,1000.0,0.00052054,30]
[396502171,1765011503024,1000.0,0.00052054,30]
[396502172,1765011503294,1000.0,0.00052054,30]
[396502174,1765011503552,1000.0,0.00052054,30]
[396502175,1765011503832,1000.0,0.00052054,30]
[396502176,1765011504127,1000.0,0.00052054,30]
[396502177,1765011504370,1000.0,0.00052054,30]
[396502178,1765011504648,1000.0,0.00052054,30]
[396502179,1765011504918,1000.0,0.00052054,30]
[396502180,1765011505341,1000.0,0.00052054,30]
[396502181,1765011505373,1000.0,0.00052054,30]
[396502182,1765011505975,1000.0,0.00052054,30]
[396502183,1765011506265,1000.0,0.00052054,30]
[396502184,1765011507417,1000.0,0.00052054,30]
[396502185,1765011507452,3272.0,0.00049,120]
[396502186,1765011508043,1000.0,0.00052054,30]
[396502187,1765011509210,1000.0,0.00052054,30]
[396502188,1765011510721,1000.0,0.00052054,30]
[396502189,1765011512193,1000.0,0.00052054,30]
[396502190,1765011514292,1000.0,0.00052054,30]
[396502191,1765011516091,1000.0,0.00052054,30]
[396502192,1765011518757,1000.0,0.00052054,30]
[396502193,1765011519959,1000.0,0.00052054,30]
[396502194,1765011520821,1000.0,0.00052054,30]
[396502195,1765011524026,1000.0,0.00052054,30]
[396502196,1765011525275,1000.0,0.00052054,30]
[396502197,1765011526096,1000.0,0.00052054,30]
[396502198,1765011529298,1000.0,0.00052054,30]
[396502199,1765011530546,1000.0,0.00052054,30]
[396502200,1765011530920,200.0,0.0001498,2]
[396502201,1765011531360,1000.0,0.00052054,30]
[396502202,1765011532927,1191.65025045,0.00015235,2]
[396502203,1765011532950,5318.16934955,0.00015235,2]
[396502204,1765011534549,1000.0,0.00052054,30]
[396502205,1765011535860,1000.0,0.00052054,30]
[396502206,1765011536625,1000.0,0.00052054,30]
[396502207,1765011537377,664.0,0.00052054,30]
[396502208,1765011539825,1000.0,0.00052054,30]
[396502209,1765011541166,1000.0,0.00052054,30]
[396502210,1765011541271,300.0,0.00015334,2]
[396502211,1765011541890,1000.0,0.00052054,30]
[396502212,1765011542668,664.0,0.00052054,30]
[396502213,1765011545113,1000.0,0.00052054,30]
[396502215,1765011546437,1000.0,0.00052054,30]
[396502216,1765011547186,1000.0,0.00052054,30]
[396502217,1765011547941,664.0,0.00052054,30]
[396502218,1765011550346,1000.0,0.00052054,30]
[396502219,1765011553214,664.0,0.00052054,30]
[396502220,1765011554100,1503.030518,0.000422,38]
[396502221,1765011559822,800.0,0.00052055,30]
[396502222,1765011575824,1045.21,0.000151,2]
[396502225,1765011594225,150.0,0.00051,30]
[396502226,1765011594639,1372.7982,0.00015235,2]
[396502227,1765011598439,550.0,0.00039452,120]
[396502228,1765011598918,550.0,0.00039452,120]
[396502229,1765011598991,550.0,0.00039452,120]
[396502230,1765011599028,151.17618816,0.00052054,30]
[396502231,1765011599098,550.0,0.00039452,120]
[396502232,1765011599602,550.0,0.00039452,120]
[396502233,1765011599813,550.0,0.00039452,120]
[396502234,1765011600025,500.0,0.00052054,30]
[396502235,1765011600060,550.0,0.00039452,120]
[396502236,1765011600284,500.0,0.00052054,30]
[396502237,1765011600316,550.0,0.00039452,120]
[396502238,1765011600521,550.0,0.00039452,120]
[396502239,1765011600658,402.92462601,0.00052054,30]
[396502240,1765011600739,550.0,0.00039452,120]
[396502241,1765011601260,550.0,0.00039452,120]
[396502242,1765011601296,1963.83245045,0.00015235,2]
[396502243,1765011601322,6078.3199946,0.00015235,2]
[396502244,1765011601390,550.0,0.00039452,120]
[396502245,1765011601429,300.0,0.00015334,2]
[396502246,1765011601466,1200.0,0.00015334,2]
[396502247,1765011601534,550.0,0.00039452,120]
[396502248,1765011601603,550.0,0.00039452,120]
[396502249,1765011601671,531.95,0.000362,30]
[396502250,1765011601806,550.0,0.00039452,120]
[396502251,1765011602017,550.0,0.00039452,120]
[396502252,1765011602047,151.78638188,0.00052054,30]
[396502253,1765011602229,550.0,0.00039452,120]
[396502254,1765011602479,550.0,0.00039452,120]
[396502255,1765011602586,150.0,0.00046964,30]
[396502256,1765011602701,550.0,0.00039452,120]
[396502257,1765011602824,152.66175685,0.00052054,30]
[396502258,1765011602912,550.0,0.00039452,120]
[396502259,1765011603148,550.0,0.00039452,120]
[396502260,1765011603341,550.0,0.00039452,120]
[396502261,1765011603568,550.0,0.00039452,120]
[396502262,1765011603608,150.0,0.00052054,30]
[396502263,1765011603761,278.0,0.00015335,2]
[396502264,1765011603796,550.0,0.00039452,120]
[396502265,1765011603865,150.0,0.00052054,30]
[396502266,1765011604023,550.0,0.00039452,120]
[396502267,1765011604409,202.34543075,0.00052054,30]
[396502268,1765011604460,550.0,0.00039452,120]
[396502269,1765011604528,593.15068916,0.00037998,30]
[396502270,1765011604574,550.0,0.00039452,120]
[396502271,1765011604659,550.0,0.00039452,120]
[396502272,1765011604805,155.81906527,0.00052054,30]
[396502273,1765011604879,550.0,0.00039452,120]
[396502274,1765011605099,550.0,0.00039452,120]
[396502275,1765011605312,550.0,0.00039452,120]
[396502277,1765011605436,150.0,0.00052054,30]
[396502278,1765011605524,550.0,0.00039452,120]
[396502279,1765011605711,291.76259641,0.00052054,30]
[396502280,1765011605782,362.8183185,0.00037998,30]
[396502281,1765011605820,550.0,0.00039452,120]
[396502282,1765011606002,550.0,0.00039452,120]
[396502283,1765011606230,550.0,0.00039452,120]
[396502284,1765011606451,550.0,0.00039452,120]
[396502285,1765011606679,550.0,0.00039452,120]
[396502286,1765011606912,550.0,0.00039452,120]
[396502287,1765011607132,550.0,0.00039452,120]
[396502288,1765011607175,300.0,0.00037998,30]
[396502289,1765011607234,500.0,0.00052054,30]
[396502290,1765011607342,550.0,0.00039452,120]
[396502291,1765011607501,500.0,0.00052054,30]
[396502292,1765011607563,550.0,0.00039452,120]
[396502293,1765011607775,550.0,0.00039452,120]
[396502294,1765011607841,500.0,0.00052054,30]
[396502295,1765011607996,550.0,0.00039452,120]
[396502296,1765011608103,161.31304468,0.00052054,30]
[396502297,1765011608215,550.0,0.00039452,120]
[396502298,1765011608425,550.0,0.00039452,120]
[396502299,1765011608646,550.0,0.00039452,120]
[396502300,1765011608857,550.0,0.00039452,120]
[396502301,1765011609084,550.0,0.00039452,120]
[396502302,1765011609301,550.0,0.00039452,120]
[396502303,1765011609519,550.0,0.00039452,120]
[396502304,1765011609723,550.0,0.00039452,120]
[396502305,1765011609933,550.0,0.00039452,120]
[396502306,1765011610080,2100.0,0.00052055,30]
[396502307,1765011610141,550.0,0.00039452,120]
[396502308,1765011610365,550.0,0.00039452,120]
[396502309,1765011610549,550.0,0.00039452,120]
[396502310,1765011610765,550.0,0.00039452,120]
[396502311,1765011610814,500.0,0.00051863,60]
[396502312,1765011610967,550.0,0.00039452,120]
[396502313,1765011611742,550.0,0.00039452,120]
[396502314,1765011611829,550.0,0.00039452,120]
[396502315,1765011611896,550.0,0.00039452,120]
[396502316,1765011612003,550.0,0.00039452,120]
[396502317,1765011612139,550.0,0.00039452,120]
[396502318,1765011612446,550.0,0.00039452,120]
[396502319,1765011612598,550.0,0.00039452,120]
[396502320,1765011612785,550.0,0.00039452,120]
[396502321,1765011612924,550.0,0.00039452,120]
[396502322,1765011613091,550.0,0.00039452,120]
[396502323,1765011613245,746.07391559,0.00046964,30]
[396502324,1765011613305,550.0,0.00039452,120]
[396502325,1765011613526,550.0,0.00039452,120]
[396502326,1765011613715,500.0,0.00051863,60]
[396502327,1765011613751,550.0,0.00039452,120]
[396502328,1765011613841,150.0,0.00052054,30]
[396502329,1765011613951,500.0,0.00051863,60]
[396502330,1765011614653,152.01489558,0.00052054,30]
[396502331,1765011615651,186.43349316,0.00052054,30]
[396502332,1765011616774,150.93378284,0.00052054,30]
[396502333,1765011617464,150.0,0.00052054,30]
[396502334,1765011617762,152.5230878,0.00052054,30]
[396502335,1765011618782,150.0,0.00052054,30]
[396502336,1765011619051,157.21624821,0.00052054,30]
[396502337,1765011619332,150.0,0.00052054,30]
[396502338,1765011619915,500.0,0.00052054,30]
[396502339,1765011620201,500.0,0.00052054,30]
[396502340,1765011620566,305.65423848,0.00052054,30]
[396502341,1765011621385,932.0,0.00052054,30]
[396502342,1765011621698,932.0,0.00052054,30]
[396502343,1765011622288,932.0,0.00052054,30]
[396502344,1765011622683,932.0,0.00052054,30]
[396502345,1765011622867,932.0,0.00052054,30]
[396502346,1765011622942,932.0,0.00052054,30]
[396502347,1765011623038,932.0,0.00052054,30]
[396502348,1765011623275,932.0,0.00052054,30]
[396502349,1765011623535,932.0,0.00052054,30]
[396502350,1765011623812,932.0,0.00052054,30]
[396502351,1765011624123,932.0,0.00052054,30]
[396502352,1765011624470,932.0,0.00052054,30]
[396502353,1765011624663,932.0,0.00052054,30]
[396502354,1765011624738,152.83280829,0.00052054,30]
[396502355,1765011624924,932.0,0.00052054,30]
[396502356,1765011625182,932.0,0.00052054,30]
[396502357,1765011625754,932.0,0.00052054,30]
[396502358,1765011626642,932.0,0.00052054,30]
[396502359,1765011627261,150.0,0.00052054,30]
[396502360,1765011627316,150.0,0.00052054,30]
[396502361,1765011627449,150.0,0.00052054,30]
[396502362,1765011627543,150.0,0.00052054,30]
[396502364,1765011627850,932.0,0.00052054,30]
[396502365,1765011628486,250.0,0.0001498,2]
[396502366,1765011628670,154.67900617,0.00052054,30]
[396502367,1765011629318,932.0,0.00052054,30]
[396502368,1765011631093,932.0,0.00052054,30]
[396502369,1765011633615,932.0,0.00052054,30]
[396502370,1765011635507,932.0,0.00052054,30]
[396502371,1765011638180,932.0,0.00052054,30]
[396502372,1765011641182,933.19072623,0.00052054,30]
[396502373,1765011642326,150.67371232,0.00052054,30]
[396502374,1765011643224,150.0,0.00052054,30]
[396502375,1765011643968,152.59077503,0.00052054,30]
[396502376,1765011646249,3053.0,0.00052054,30]
[396502377,1765011646507,3053.0,0.00052054,30]
[396502378,1765011646789,3053.0,0.00052054,30]
[396502379,1765011647045,3053.0,0.00052054,30]
[396502380,1765011647306,3053.0,0.00052054,30]
[396502381,1765011647570,3053.0,0.00052054,30]
[396502382,1765011647882,3053.0,0.00052054,30]
[396502383,1765011648182,3053.0,0.00052054,30]
[396502384,1765011648474,153.0,0.00039452,120]
[396502385,1765011648556,3053.0,0.00052054,30]
[396502386,1765011648710,153.0,0.00039452,120]
[396502387,1765011648829,3053.0,0.00052054,30]
[396502388,1765011648976,153.0,0.00039452,120]
[396502389,1765011649094,3053.0,0.00052054,30]
[396502390,1765011649192,153.0,0.00039452,120]
[396502391,1765011649397,3053.0,0.00052054,30]
[396502392,1765011649433,153.0,0.00039452,120]
[396502393,1765011649669,3053.0,0.00052054,30]
[396502394,1765011649919,153.0,0.00039452,120]
[396502395,1765011649954,3053.0,0.00052054,30]
[396502396,1765011650134,153.0,0.00039452,120]
[396502397,1765011650185,3053.0,0.00052054,30]
[396502398,1765011650444,3053.0,0.00052054,30]
[396502399,1765011651015,3053.0,0.00052054,30]
[396502400,1765011651921,3053.0,0.00052054,30]
[396502401,1765011653519,3053.0,0.00052054,30]
[396502402,1765011654575,3053.0,0.00052054,30]
[396502403,1765011656348,3053.0,0.00052054,30]
[396502404,1765011657314,2540.65,0.0004,30]
[396502405,1765011657540,167.0,0.00034521,30]
[396502406,1765011657610,2540.65,0.00047,30]
[396502407,1765011657850,169.0,0.00043496,90]
[396502408,1765011658415,3053.0,0.00052054,30]
[396502409,1765011660769,3053.0,0.00052054,30]
[396502410,1765011661303,300.0,0.00015334,2]
[396502411,1765011663441,153.0,0.00039452,120]
[396502412,1765011663879,3070.31868315,0.00052054,30]
[396502413,1765011663951,153.0,0.00039452,120]
[396502415,1765011664113,153.0,0.00039452,120]
[396502416,1765011664152,150.0,0.00052054,30]
[396502417,1765011664216,153.0,0.00039452,120]
[396502419,1765011664447,153.0,0.00039452,120]
[396502420,1765011664653,153.0,0.00039452,120]
[396502421,1765011665277,500.0,0.00052054,30]
[396502422,1765011665531,500.0,0.00052054,30]
[396502424,1765011665919,500.0,0.00052054,30]
[396502425,1765011666188,500.0,0.00052054,30]
[396502426,1765011666666,500.0,0.00052054,30]
[396502427,1765011666938,501.88899101,0.00052054,30]
[396502428,1765011667507,151.77141743,0.00052054,30]
[396502429,1765011667628,151.0,0.00052054,120]
[396502431,1765011668134,1128.0,0.00052054,30]
[396502432,1765011668392,1128.0,0.00052054,30]
[396502433,1765011668717,1128.0,0.00052054,30]
[396502434,1765011668917,1128.0,0.00052054,30]
[396502435,1765011669194,1128.0,0.00052054,30]
[396502436,1765011669432,151.0,0.00052054,120]
[396502437,1765011669473,1128.0,0.00052054,30]
[396502438,1765011669896,1128.0,0.00052054,30]
[396502439,1765011670001,1128.0,0.00052054,30]
[396502440,1765011670266,1128.0,0.00052054,30]
[396502441,1765011670573,1128.0,0.00052054,30]
[396502442,1765011671028,1128.0,0.00052054,30]
[396502443,1765011671310,1128.0,0.00052054,30]
[396502444,1765011671558,1128.0,0.00052054,30]
[396502445,1765011672145,1128.0,0.00052054,30]
[396502446,1765011672545,1128.0,0.00052054,30]
[396502447,1765011672811,1128.0,0.00052054,30]
[396502448,1765011673098,1128.0,0.00052054,30]
[396502449,1765011673657,1128.0,0.00052054,30]
[396502450,1765011674523,1128.0,0.00052054,30]
[396502451,1765011675707,1128.0,0.00052054,30]
[396502452,1765011676477,1593.6900054,0.00014982,2]
[396502453,1765011676500,6.3099946,0.00014982,2]
[396502454,1765011677389,1128.0,0.00052054,30]
[396502455,1765011679186,1128.0,0.00052054,30]
[396502456,1765011680474,150.0,0.00052054,30]
[396502457,1765011680651,150.0,0.00052054,30]
[396502458,1765011681258,1128.0,0.00052054,30]
[396502459,1765011683635,1132.29039722,0.00052054,30]
[396502460,1765011685097,150.0,0.00052054,30]
[396502461,1765011685176,209.2197886,0.00052054,30]
[396502462,1765011686097,795.0,0.00052054,30]
[396502463,1765011686356,795.0,0.00052054,30]
[396502464,1765011686673,795.0,0.00052054,30]
[396502465,1765011686923,795.0,0.00052054,30]
[396502466,1765011687210,795.0,0.00052054,30]
[396502467,1765011687457,795.0,0.00052054,30]
[396502468,1765011687713,795.0,0.00052054,30]
[396502469,1765011687995,795.0,0.00052054,30]
[396502470,1765011688261,795.0,0.00052054,30]
[396502471,1765011688524,795.0,0.00052054,30]
[396502472,1765011689002,795.0,0.00052054,30]
[396502473,1765011689286,795.0,0.00052054,30]
[396502474,1765011689573,795.0,0.00052054,30]
[396502475,1765011689693,4148.19036677,0.00015334,2]
[396502476,1765011690079,795.0,0.00052054,30]
[396502477,1765011690357,795.0,0.00052054,30]
[396502478,1765011690843,795.0,0.00052054,30]
[396502479,1765011691443,795.0,0.00052054,30]
[396502480,1765011692499,795.0,0.00052054,30]
[396502481,1765011693043,1239.992,0.00015029,2]
[396502482,1765011693110,1239.992,0.00038771,52]
[396502483,1765011693153,170.416,0.00015029,2]
[396502484,1765011693729,795.0,0.00052054,30]
[396502485,1765011695535,795.0,0.00052054,30]
[396502486,1765011695826,1000.0,0.00051797,30]
[396502487,1765011695892,1000.0,0.00051433,30]
[396502488,1765011696028,1000.0,0.00051897,30]
[396502489,1765011696328,1000.0,0.0005132,30]
[396502490,1765011696517,1000.0,0.00051575,30]
[396502491,1765011696973,795.0,0.00052054,30]
[396502492,1765011699545,795.0,0.00052054,30]
[396502494,1765011701394,500.0,0.00046575,31]
[396502495,1765011701654,500.0,0.00052055,33]
[396502496,1765011703118,795.0,0.00052054,30]
[396502497,1765011706342,506.71814393,0.00015335,2]
[396502498,1765011707436,500.0,0.00015335,2]
[396502499,1765011708177,805.65773014,0.00052054,30]
[396502500,1765011708841,150.0,0.00052054,30]
[396502501,1765011709072,262.52299545,0.00052054,30]
[396502502,1765011717471,509.18007663,0.00015335,2]
[396502503,1765011721324,300.0,0.00015334,2]
[396502506,1765011725111,200.0,0.00052055,30]
[396502507,1765011725711,201.32298322,0.00052055,30]
[396502508,1765011728499,500.0,0.00052055,30]
[396502509,1765011728923,331.80759224,0.00015235,2]
[396502510,1765011730541,200.0,0.00052055,30]
[396502511,1765011731132,201.67121369,0.00052055,30]
[396502512,1765011736467,500.0,0.00050068,120]
[396502513,1765011737096,500.0,0.00052055,30]
[396502514,1765011737140,517.31963743,0.00041438,30]
[396502515,1765011737395,503.93214837,0.00052055,30]
[396502516,1765011739687,500.0,0.00035059,30]
[396502517,1765011740061,500.0,0.00035203,30]
[396502518,1765011740348,500.0,0.00037528,30]
[396502519,1765011740687,500.0,0.00039759,30]
[396502520,1765011740809,500.0,0.00036254,30]
[396502521,1765011741518,526.40250663,0.00044156,30]
[396502522,1765011741557,611.75031463,0.00015335,2]
[396502523,1765011742536,500.0,0.0003551,30]
[396502524,1765011742686,150.0,0.00052,40]
[396502525,1765011742749,500.0,0.00037325,30]
[396502526,1765011743503,500.0,0.00037803,30]
[396502527,1765011743854,510.82363764,0.00039561,30]
[396502532,1765011748856,500.0,0.00044287,30]
[396502533,1765011749213,510.33310873,0.00044382,30]
[396502534,1765011751633,712.27696234,0.0003533,30]
[396502535,1765011752061,500.0,0.00015335,2]
[396502536,1765011752300,500.0,0.00015335,2]
[396502537,1765011752405,500.0,0.00035154,30]
[396502538,1765011752727,500.0,0.00036195,30]
[396502539,1765011753080,500.0,0.0003639,30]
[396502540,1765011753402,500.0,0.00037815,30]
[396502541,1765011753744,500.0,0.00038312,30]
[396502542,1765011754111,500.0,0.00040172,30]
[396502543,1765011754433,800.0,0.00035423,30]
[396502544,1765011754470,500.0,0.00041731,30]
[396502545,1765011754770,800.0,0.00036045,30]
[396502546,1765011754811,573.89857139,0.00041952,30]
[396502547,1765011755024,500.0,0.00015335,2]
[396502548,1765011755131,800.0,0.00036522,30]
[396502549,1765011755374,175.6455112,0.00015335,2]
[396502550,1765011755398,324.3544888,0.00015335,2]
[396502551,1765011755445,828.69728706,0.00037449,30]
[396502552,1765011755495,800.0,0.0003676,30]
[396502553,1765011755857,800.0,0.00037362,30]
[396502554,1765011756064,203.683575,0.0005,120]
[396502555,1765011756193,800.0,0.00038311,30]
[396502556,1765011756534,800.0,0.00038533,30]
[396502557,1765011756766,500.0,0.0003546,30]
[396502558,1765011756885,800.0,0.00038745,30]
[396502559,1765011757077,500.0,0.00039894,30]
[396502560,1765011757263,800.0,0.00040457,30]
[396502561,1765011757454,928.4573363,0.00044766,30]
[396502562,1765011757939,811.6628827,0.00044404,30]
[396502563,1765011758426,175.44413782,0.00052054,33]
[396502564,1765011762062,150.43281348,0.00052054,33]
[396502566,1765011779042,507.69829592,0.00015335,2]
[396502567,1765011781314,300.0,0.00015334,2]
[396502568,1765011785212,1000.0,0.00052055,30]
[396502572,1765011787801,500.0,0.00052055,30]
[396502574,1765011789274,500.0,0.00052055,30]
[396502575,1765011791953,398.96,0.000362,30]
[396502576,1765011792877,200.0,0.00014877,2]
[396502577,1765011793433,207.4,0.00014877,2]
[396502578,1765011794066,215.0738,0.00014877,2]
[396502579,1765011794692,223.0315306,0.00014877,2]
[396502580,1765011795328,231.28369723,0.00014877,2]